bitfinex-derivatives/quotes_SOLF0:USTF0_20250903
["timestamp","ask_amount","ask_price","bid_price","bid_amount"]
[1756901351728,3.30125657,211.22,211.21,7.5]
[1756901351931,3.30125657,211.26,211.21,7.5]
[1756901352130,3.30125657,211.25,211.21,7.5]
[1756901352430,3.30125657,211.24,211.21,7.5]
[1756901352630,3.30125657,211.23,211.21,7.5]
[1756901352832,3.30125657,211.22,211.21,7.5]
[1756901353226,7.84,211.25,211.17,1.72131096]
[1756901353227,3.30125657,211.24,211.17,1.72131096]
[1756901353432,3.30125657,211.23,211.17,9.06131096]
[1756901353631,3.30125657,211.22,211.18,7.34]
[1756901353937,3.30125657,211.21,211.17,1.72131096]
[1756901354137,9.56131096,211.25,211.18,7.34]
[1756901354331,3.30165274,211.24,211.18,7.34]
[1756901354630,11.14165274,211.23,211.17,1.72131096]
[1756901354829,3.30165274,211.22,211.18,7.34]
[1756901355037,3.30165274,211.21,211.18,7.34]
[1756901355236,5.31822148,211.29,211.17,1.72131096]
[1756901355437,1.72131096,211.25,211.18,7.34]
[1756901355631,3.30169717,211.24,211.18,7.34]
[1756901355835,11.14169717,211.23,211.17,7.34]
[1756901356136,3.30169717,211.22,211.17,7.34]
[1756901356438,3.30169717,211.21,211.16,5.98221096]
[1756901356640,3.30169717,211.2,211.16,5.98221096]
[1756901356834,7.84,211.23,211.15,7.34]
[1756901357034,3.30193781,211.22,211.15,9.06131096]
[1756901357339,3.30193781,211.21,211.15,9.06131096]
[1756901357534,3.30193781,211.2,211.15,1.72131096]
[1756901357835,9.56131096,211.23,211.15,9.06131096]
[1756901358036,3.30209417,211.22,211.15,9.06131096]
[1756901358236,3.30209417,211.21,211.15,9.06131096]
[1756901358538,3.30209417,211.2,211.16,7.34]
[1756901358734,9.56131096,211.23,211.16,7.34]
[1756901358944,1.72131096,211.21,211.14,114.04]
[1756901359141,3.30243918,211.2,211.14,114.04]
[1756901361737,7.84,211.19,211.09,7.34]
[1756901361943,1.72131096,211.17,211.09,7.34]
[1756901362246,3.30243918,211.16,211.09,7.34]
[1756901362549,3.30243918,211.15,211.09,7.34]
[1756901362743,3.30243918,211.14,211.09,7.34]
[1756901362945,3.30243918,211.13,211.09,7.34]
[1756901363150,7.84,211.19,211.13,7.34]
[1756901363442,3.30028482,211.18,211.14,1.72131096]
[1756901363643,1.72131096,211.24,211.17,7.34]
[1756901363850,3.30016882,211.23,211.17,7.34]
[1756901364048,3.30016882,211.22,211.16,13.32221096]
[1756901364249,3.30016882,211.21,211.18,1.72131096]
[1756901364440,13.15822148,211.3,211.2,1.72131096]
[1756901364644,3.29953785,211.29,211.22,1.72131096]
[1756901364846,3.29953785,211.28,211.22,1.72131096]
[1756901365049,11.13953785,211.27,211.22,9.06131096]
[1756901365250,1.72131096,211.3,211.22,7.34]
[1756901365251,11.13953785,211.26,211.22,7.34]
[1756901365552,3.29953785,211.25,211.22,7.34]
[1756901365849,11.13953785,211.24,211.2,9.06131096]
[1756901366047,1.72131096,211.28,211.2,1.72131096]
[1756901366246,5.31822148,211.32,211.22,1.72131096]
[1756901366247,3.29912667,211.27,211.22,1.72131096]
[1756901366454,7.84,211.32,211.26,1.72131096]
[1756901366654,3.29772162,211.31,211.26,9.06131096]
[1756901366948,3.29772162,211.3,211.24,1.72131096]
[1756901367252,11.13772162,211.29,211.25,7.34]
[1756901367448,3.29772162,211.28,211.25,7.34]
[1756901367649,3.29772162,211.27,211.25,7.34]
[1756901367850,1.72131096,211.33,211.26,1.72131096]
[1756901368050,11.13744217,211.32,211.25,9.06131096]
[1756901368254,3.29744217,211.31,211.25,9.06131096]
[1756901368452,3.29744217,211.3,211.26,7.34]
[1756901368648,3.29744217,211.29,211.26,7.34]
[1756901368854,7.84,211.32,211.24,1.72131096]
[1756901368855,3.29744217,211.28,211.24,1.72131096]
[1756901369151,3.29744217,211.27,211.24,1.72131096]
[1756901369348,7.84,211.35,211.27,7.34]
[1756901369552,7.84,211.33,211.29,9.06131096]
[1756901369743,3.29696082,211.32,211.29,7.34]
[1756901369950,3.29696082,211.31,211.29,7.34]
[1756901370150,3.29696082,211.3,211.29,7.34]
[1756901370351,7.84,211.33,211.29,7.34]
[1756901370553,3.29579862,211.32,211.29,7.34]
[1756901370753,3.29579862,211.31,211.29,7.34]
[1756901370945,7.84,211.35,211.29,7.34]
[1756901371150,7.84,211.33,211.29,7.34]
[1756901371352,3.29579862,211.32,211.25,11.599]
[1756901371553,3.29579862,211.31,211.28,7.34]
[1756901371754,7.84,211.34,211.28,7.34]
[1756901371945,11.1351457,211.33,211.28,7.34]
[1756901372144,3.2951457,211.32,211.28,7.34]
[1756901372354,3.2951457,211.31,211.28,7.34]
[1756901372555,3.2951457,211.3,211.28,7.34]
[1756901372854,1.72131096,211.33,211.25,1.72131096]
[1756901373159,11.13493613,211.32,211.25,1.72131096]
[1756901373360,3.29493613,211.31,211.25,1.72131096]
[1756901374457,3.29493613,211.31,211.23,7.34]
[1756901374654,3.29493613,211.31,211.24,1.72131096]
[1756901376959,11.13493613,211.3,211.23,7.34]
[1756901377159,3.29493613,211.29,211.23,7.34]
[1756901377853,3.29493613,211.29,211.24,1.72131096]
[1756901378260,3.29493613,211.29,211.25,7.34]
[1756901378754,11.13493613,211.28,211.25,7.34]
[1756901378957,7.84,211.28,211.22,9.06131096]
[1756901379151,3.29497956,211.27,211.23,7.34]
[1756901379359,7.84,211.28,211.23,7.34]
[1756901379558,7.84,211.28,211.22,1.72131096]
[1756901379754,7.84,211.28,211.22,9.06131096]
[1756901379951,3.29480347,211.27,211.22,9.06131096]
[1756901380152,7.84,211.26,211.22,7.34]
[1756901381557,7.56,211.31,211.21,7.34]
[1756901381758,3.29472798,211.3,211.22,7.42]
[1756901382058,3.29472798,211.29,211.22,7.42]
[1756901382360,3.29472798,211.28,211.22,7.42]
[1756901382660,3.29472798,211.27,211.22,7.42]
[1756901382861,7.56,211.31,211.23,7.42]
[1756901383161,3.2947105,211.3,211.23,7.42]
[1756901383356,3.2947105,211.29,211.23,7.42]
[1756901383560,3.2947105,211.28,211.23,4.2595]
[1756901383761,7.56,211.31,211.24,7.42]
[1756901384058,3.29452578,211.3,211.24,7.42]
[1756901384358,3.29452578,211.29,211.23,11.6795]
[1756901384555,3.29452578,211.28,211.24,7.42]
[1756901384758,7.56,211.35,211.25,7.42]
[1756901384956,3.29409654,211.34,211.25,7.42]
[1756901385152,3.29409654,211.33,211.28,7.42]
[1756901385357,7.56,211.36,211.27,7.42]
[1756901385659,3.29295233,211.35,211.27,7.42]
[1756901385957,3.29295233,211.34,211.27,7.42]
[1756901386160,10.85295233,211.33,211.24,7.42]
[1756901386460,3.29295233,211.32,211.24,7.42]
[1756901386661,3.29295233,211.32,211.25,7.42]
[1756901387956,3.29295233,211.32,211.25,11.679]
[1756901388550,3.29295233,211.32,211.26,2.68913374]
[1756901390959,7.56,211.31,211.22,4.2598]
[1756901391158,3.29295233,211.3,211.22,4.2598]
[1756901391457,3.29295233,211.29,211.22,4.2598]
[1756901391663,7.56,211.31,211.22,4.2598]
[1756901391854,3.29196777,211.3,211.22,4.2598]
[1756901392157,3.29196777,211.29,211.22,4.2598]
[1756901392358,7.56,211.31,211.22,4.2598]
[1756901392562,3.2919371,211.3,211.22,4.2598]
[1756901392753,3.2919371,211.29,211.22,4.2598]
[1756901392962,7.56,211.31,211.22,4.2598]
[1756901393162,3.2919371,211.3,211.22,4.2598]
[1756901393354,3.2919371,211.29,211.22,4.2598]
[1756901393663,7.56,211.31,211.22,4.2598]
[1756901393866,3.29191572,211.3,211.22,4.2598]
[1756901394060,3.29191572,211.29,211.22,4.2598]
[1756901394261,7.56,211.31,211.22,4.2598]
[1756901394462,3.29192309,211.3,211.22,4.2598]
[1756901394656,3.29192309,211.29,211.22,4.2598]
[1756901394862,7.56,211.31,211.22,4.2598]
[1756901395162,3.29192378,211.3,211.22,4.2598]
[1756901395362,3.29192378,211.29,211.22,4.2598]
[1756901395663,7.56,211.31,211.22,4.2598]
[1756901395961,3.29194308,211.3,211.22,4.2598]
[1756901396162,7.56,211.31,211.22,4.2598]
[1756901396163,3.29194308,211.29,211.22,4.2598]
[1756901396463,7.56,211.31,211.22,4.2598]
[1756901396662,3.29055232,211.3,211.22,4.2598]
[1756901396862,3.29055232,211.29,211.23,4.2595]
[1756901397064,7.56,211.31,211.23,4.2595]
[1756901397264,3.29055232,211.3,211.23,11.6795]
[1756901397465,3.29055232,211.29,211.23,11.6795]
[1756901397666,7.56,211.31,211.23,11.6795]
[1756901397871,3.29059206,211.3,211.23,11.6795]
[1756901398170,3.29059206,211.29,211.24,4.2593]
[1756901398370,7.56,211.31,211.24,4.2593]
[1756901398572,3.29071628,211.3,211.24,4.2593]
[1756901398767,10.85071628,211.29,211.24,11.6793]
[1756901398969,7.56,211.35,211.25,11.679]
[1756901399267,7.56,211.33,211.25,7.42]
[1756901399473,7.56,211.31,211.25,7.42]
[1756901399670,7.56,211.29,211.25,7.42]
[1756901400168,7.56,211.32,211.2,7.42]
[1756901400369,7.56,211.3,211.2,7.42]
[1756901400671,3.29086098,211.29,211.22,7.42]
[1756901400871,7.56,211.3,211.22,7.42]
[1756901401070,3.29085765,211.29,211.22,7.42]
[1756901401271,7.56,211.3,211.22,7.42]
[1756901401568,7.56,211.28,211.22,7.42]
[1756901401969,7.56,211.28,211.22,11.6797]
[1756901402371,7.56,211.32,211.22,7.42]
[1756901402669,3.29143128,211.31,211.22,7.42]
[1756901402872,3.29143128,211.3,211.22,7.42]
[1756901403065,3.29143128,211.29,211.23,4.2595]
[1756901403262,10.85181605,211.28,211.23,4.2595]
[1756901403462,7.56,211.28,211.24,7.42]
[1756901404072,3.29224336,211.27,211.24,7.42]
[1756901404273,2.68913374,211.34,211.24,7.42]
[1756901404472,10.85288597,211.33,211.24,7.42]
[1756901404669,7.56,211.31,211.24,7.42]
[1756901404870,7.56,211.29,211.22,4.2596]
[1756901405069,3.29288597,211.28,211.22,4.2596]
[1756901407172,3.29288597,211.28,211.24,7.42]
[1756901407378,3.29288597,211.28,211.19,121.30913374]
[1756901407379,3.29288597,211.28,211.2,7.42]
[1756901407879,10.85288597,211.28,211.24,11.6793]
[1756901408068,3.29288597,211.27,211.25,7.42]
[1756901408272,3.30070753,211.26,211.25,7.42]
[1756901411672,3.30070753,211.26,211.24,4.2593]
[1756901411876,3.30376704,211.25,211.22,11.7297]
[1756901412077,7.8,211.29,211.22,7.47]
[1756901412078,3.30429666,211.24,211.22,7.47]
[1756901412377,3.30429666,211.23,211.22,7.47]
[1756901413082,3.30429666,211.23,211.2,126.05]
[1756901413384,7.8,211.26,211.2,126.05]
[1756901413582,3.3037075,211.25,211.21,7.47]
[1756901413882,3.3037075,211.24,211.2,118.58]
[1756901414084,7.8,211.26,211.22,11.7297]
[1756901414283,3.30359551,211.25,211.22,7.47]
[1756901414577,3.30359551,211.24,211.22,7.47]
[1756901414784,7.8,211.26,211.22,7.47]
[1756901414974,3.30361813,211.25,211.22,7.47]
[1756901415183,3.30361813,211.24,211.22,7.47]
[1756901415381,7.8,211.26,211.22,11.7297]
[1756901415583,3.30372869,211.25,211.22,11.7297]
[1756901415779,3.30372869,211.24,211.22,11.7297]
[1756901415984,7.8,211.26,211.22,11.7297]
[1756901416188,3.30372869,211.25,211.22,11.7297]
[1756901416383,7.8,211.26,211.22,11.7297]
[1756901416384,3.30372869,211.24,211.22,11.7297]
[1756901416585,7.8,211.26,211.22,11.7297]
[1756901416786,11.10387704,211.25,211.22,7.47]
[1756901416985,3.30387704,211.24,211.22,7.47]
[1756901417185,3.30387704,211.23,211.22,7.47]
[1756901417993,3.30387704,211.23,211.21,4.2599]
[1756901418194,3.30387704,211.22,211.21,11.7299]
[1756901420293,7.8,211.25,211.21,11.7299]
[1756901420500,3.30312898,211.24,211.21,11.7299]
[1756901420685,3.30312898,211.23,211.21,11.7299]
[1756901420889,7.8,211.25,211.21,11.7299]
[1756901421089,3.30312898,211.24,211.19,4.2603]
[1756901421293,11.10312898,211.23,211.19,130.2903]
[1756901421493,3.30312898,211.22,211.19,130.2903]
[1756901421794,7.8,211.23,211.19,130.2903]
[1756901421990,3.30296373,211.22,211.19,122.8203]
[1756901422292,7.8,211.28,211.19,130.2903]
[1756901422596,7.8,211.26,211.19,130.2903]
[1756901422798,3.30264873,211.25,211.19,130.2903]
[1756901423095,3.30264873,211.24,211.19,130.2903]
[1756901423296,7.8,211.22,211.19,130.2903]
[1756901423492,7.8,211.28,211.2,7.47]
[1756901423689,3.30217035,211.27,211.2,7.47]
[1756901423887,3.30217035,211.26,211.2,7.47]
[1756901424189,3.30217035,211.25,211.23,7.47]
[1756901424386,3.30217035,211.24,211.23,7.47]
[1756901427600,3.30217035,211.24,211.22,4.2596]
[1756901427601,7.8,211.28,211.24,11.7293]
[1756901427898,3.30234981,211.27,211.25,7.47]
[1756901428099,3.30234981,211.26,211.25,7.47]
[1756901429400,3.30234981,211.26,211.24,4.2593]
[1756901429703,3.30234981,211.25,211.22,4.2598]
[1756901429904,3.30234981,211.25,211.22,11.7298]
[1756901430095,3.30234981,211.25,211.23,7.47]
[1756901430301,3.30234981,211.25,211.22,4.2598]
[1756901430500,11.10234981,211.24,211.2,125.99]
[1756901430696,11.10234981,211.23,211.14,7.47]
[1756901430902,3.30234981,211.22,211.15,118.52]
[1756901431105,3.30234981,211.21,211.16,4.2609]
[1756901431403,7.8,211.19,211.16,4.2609]
[1756901431606,7.8,211.26,211.16,7.47]
[1756901431799,7.8,211.24,211.16,11.7309]
[1756901432003,3.30372008,211.23,211.16,11.7309]
[1756901432200,3.30372008,211.22,211.16,7.47]
[1756901432407,3.30372008,211.21,211.18,7.47]
[1756901432606,3.30372008,211.2,211.18,7.47]
[1756901432806,7.8,211.27,211.18,7.47]
[1756901433106,7.8,211.25,211.18,7.47]
[1756901433306,3.30322096,211.24,211.18,7.47]
[1756901433508,7.8,211.22,211.18,7.47]
[1756901433702,3.30322096,211.21,211.18,7.47]
[1756901433907,7.97733222,211.3,211.15,118.52]
[1756901433908,7.8,211.19,211.15,122.7811]
[1756901434206,7.8,211.19,211.16,7.47]
[1756901434506,7.8,211.24,211.16,7.47]
[1756901434702,3.30288187,211.23,211.16,7.47]
[1756901434904,3.30288187,211.22,211.16,7.47]
[1756901435104,3.30288187,211.21,211.16,7.47]
[1756901435303,3.30288187,211.2,211.15,122.7811]
[1756901435502,3.30288187,211.19,211.15,122.7811]
[1756901435703,7.8,211.23,211.16,7.47]
[1756901435903,3.30269221,211.22,211.16,7.47]
[1756901436106,3.30269221,211.21,211.15,130.2511]
[1756901436404,11.10269221,211.2,211.16,7.47]
[1756901436602,3.30269221,211.19,211.16,7.47]
[1756901436799,7.8,211.2,211.16,7.47]
[1756901437005,3.30226627,211.19,211.16,7.47]
[1756901437204,2.68913374,211.25,211.15,122.7811]
[1756901437404,7.8,211.18,211.08,7.47]
[1756901437609,3.3017039,211.17,211.08,7.47]
[1756901437912,3.3017039,211.16,211.08,7.47]
[1756901438103,3.3017039,211.15,211.08,7.47]
[1756901438410,7.8,211.18,211.08,7.47]
[1756901438605,3.30038753,211.17,211.08,7.47]
[1756901438805,3.30038753,211.16,211.08,7.47]
[1756901439007,3.30038753,211.15,211.09,4.2623]
[1756901439211,7.8,211.18,211.09,4.2623]
[1756901439411,3.29877481,211.17,211.09,4.2623]
[1756901439612,3.29877481,211.16,211.09,4.2623]
[1756901439811,3.29877481,211.15,211.09,4.2623]
[1756901440012,7.8,211.18,211.09,4.2623]
[1756901440213,3.29747797,211.17,211.09,4.2623]
[1756901440412,3.29747797,211.16,211.09,4.2623]
[1756901440709,3.29747797,211.15,211.09,4.2623]
[1756901440911,7.8,211.18,211.09,4.2623]
[1756901441114,3.297428,211.17,211.09,4.2623]
[1756901441312,3.297428,211.16,211.09,4.2623]
[1756901441607,7.8,211.14,211.08,7.47]
[1756901442913,10.87555782,211.13,211.08,7.47]
[1756901443214,7.58,211.13,211.07,126.14]
[1756901443709,7.58,211.13,211.07,7.64]
[1756901443909,7.58,211.13,211.07,126.14]
[1756901444311,5.31822148,211.22,211.08,1.72346099]
[1756901444611,7.58,211.17,211.09,7.64]
[1756901444804,5.01618859,211.16,211.09,7.64]
[1756901445007,3.2927276,211.15,211.09,7.64]
[1756901445207,1.72346099,211.16,211.09,7.64]
[1756901445411,3.29183357,211.15,211.09,7.64]
[1756901445611,1.72346099,211.16,211.09,7.64]
[1756901445814,3.29183241,211.15,211.09,7.64]
[1756901446014,1.72346099,211.16,211.09,7.64]
[1756901446218,9.30346099,211.14,211.07,118.5]
[1756901446416,7.58,211.14,211.08,7.64]
[1756901447213,7.58,211.14,211.07,118.5]
[1756901447214,7.58,211.12,211.04,1.72346099]
[1756901447413,7.58,211.12,211.05,118.5]
[1756901448911,7.58,211.12,211.05,122.7631]
[1756901449117,7.58,211.12,211.05,118.5]
[1756901449319,7.58,211.12,211.06,7.64]
[1756901449519,9.30346099,211.12,211.05,126.14]
[1756901449822,9.30346099,211.12,211.05,7.64]
[1756901451214,9.30346099,211.12,211.05,11.9031]
[1756901453323,1.72346099,211.14,211.07,7.64]
[1756901453920,1.72346099,211.14,211.08,4.2625]
[1756901454513,7.58,211.16,211.08,1.72346099]
[1756901454713,1.72346099,211.19,211.12,1.72346099]
[1756901455117,3.28596885,211.18,211.12,1.72346099]
[1756901455313,7.58,211.18,211.11,7.64]
[1756901455521,9.30346099,211.17,211.11,7.64]
[1756901456329,7.58,211.17,211.11,7.64]
[1756901457124,7.58,211.17,211.12,1.72346099]
[1756901457423,7.58,211.17,211.13,7.64]
[1756901459024,1.72346099,211.18,211.11,5.98536099]
[1756901460123,1.72346099,211.18,211.11,4.2619]
[1756901460333,7.58,211.25,211.16,9.36346099]
[1756901460624,7.58,211.23,211.16,9.36346099]
[1756901460824,5.00770139,211.22,211.16,7.64]
[1756901461024,7.58,211.2,211.12,7.64]
[1756901461220,9.30346099,211.2,211.12,7.64]
[1756901462422,3.28527337,211.19,211.12,7.64]
[1756901462623,10.86527337,211.18,211.12,7.64]
[1756901462824,9.30346099,211.18,211.12,7.64]
[1756901464126,9.30346099,211.18,211.1,4.2621]
[1756901464521,3.28600692,211.17,211.1,4.2621]
[1756901464724,1.72346099,211.16,211.09,7.64]
[1756901464925,7.58,211.13,211.06,9.36346099]
[1756901466931,1.72346099,211.12,211.06,7.64]
[1756901469633,7.58,211.13,211.06,7.64]
[1756901469832,1.72346099,211.12,211.06,7.64]
[1756901474236,3.29247594,211.11,211.05,7.57]
[1756901474430,9.11346099,211.12,211.05,7.57]
[1756901474636,7.39,211.1,211.03,1.72346099]
[1756901475032,1.72346099,211.08,211.02,7.57]
[1756901475637,3.29458625,211.07,211.02,7.57]
[1756901475939,9.11346099,211.08,211.02,7.57]
[1756901476237,3.294639,211.07,211.01,7.57]
[1756901476440,1.72346099,211.06,211.01,7.57]
[1756901476732,10.68525438,211.05,211.01,7.57]
[1756901477038,5.31822148,211.12,211.01,7.57]
[1756901477039,1.72346099,211.08,211.01,7.57]
[1756901477239,3.29589958,211.07,211.01,7.57]
[1756901477438,3.29589958,211.06,211.0,5.98756099]
[1756901477733,3.29589958,211.05,211.0,5.98756099]
[1756901477934,1.72346099,211.08,211.01,7.57]
[1756901478139,3.29479472,211.07,211.01,7.57]
[1756901478337,3.29479472,211.06,211.01,7.57]
[1756901478537,3.29479472,211.05,211.04,9.29346099]
[1756901478737,7.39,211.15,211.04,9.29346099]
[1756901478936,3.29390484,211.14,211.08,9.29346099]
[1756901479136,3.29390484,211.13,211.06,1.72346099]
[1756901479439,3.29390484,211.12,211.09,7.57]
[1756901479640,3.29390484,211.11,211.09,7.57]
[1756901479841,3.29390484,211.1,211.09,7.57]
[1756901480034,1.72346099,211.12,211.04,7.57]
[1756901480230,1.72346099,211.12,211.04,9.29346099]
[1756901480231,3.29390484,211.11,211.04,9.29346099]
[1756901481333,3.29390484,211.1,211.04,7.57]
[1756901481535,3.29390484,211.09,211.05,7.57]
[1756901481736,3.29390484,211.08,211.05,7.57]
[1756901481937,1.72346099,211.12,211.05,7.57]
[1756901482138,3.29620765,211.11,211.05,7.57]
[1756901482339,3.29620765,211.1,211.04,9.29346099]
[1756901482543,3.29620765,211.09,211.03,7.57]
[1756901485947,3.29620765,211.09,211.03,9.29346099]
[1756901486143,3.29620765,211.08,211.03,9.29346099]
[1756901486348,3.29620765,211.07,211.06,7.57]
[1756901489147,9.11346099,211.13,211.06,11.8329]
[1756901489345,3.29718746,211.12,211.06,5.98636099]
[1756901489544,7.39,211.19,211.1,9.29346099]
[1756901489743,5.01995171,211.18,211.1,11.8322]
[1756901489945,3.29649072,211.17,211.09,7.57]
[1756901490143,3.29649072,211.16,211.1,1.72346099]
[1756901490349,3.29649072,211.15,211.11,4.2618]
[1756901490553,3.29649072,211.14,211.11,7.57]
[1756901490851,3.29649072,211.13,211.1,1.72346099]
[1756901491050,3.29649072,211.12,211.11,7.57]
[1756901491350,7.39,211.23,211.11,7.57]
[1756901491551,1.72346099,211.21,211.14,7.57]
[1756901491849,1.72346099,211.19,211.14,7.57]
[1756901492050,3.29649272,211.18,211.13,7.57]
[1756901492252,3.29649272,211.17,211.13,7.57]
[1756901492444,3.29649272,211.16,211.13,7.57]
[1756901492648,1.72346099,211.21,211.13,7.57]
[1756901492844,3.29554214,211.2,211.13,9.29346099]
[1756901493052,3.29554214,211.19,211.13,9.29346099]
[1756901493247,3.29554214,211.18,211.14,7.57]
[1756901493452,3.29554214,211.17,211.13,1.72346099]
[1756901493650,3.29554214,211.16,211.14,7.57]
[1756901493852,1.72346099,211.21,211.14,7.57]
[1756901494054,3.29499583,211.2,211.14,7.57]
[1756901494249,3.29499583,211.19,211.14,7.57]
[1756901494450,3.29499583,211.18,211.13,5.98486099]
[1756901494646,3.29499583,211.17,211.13,5.98486099]
[1756901494853,7.39,211.23,211.14,7.57]
[1756901495053,1.72346099,211.21,211.14,7.57]
[1756901495253,3.29439757,211.2,211.14,7.57]
[1756901495450,3.29439757,211.19,211.14,7.57]
[1756901495656,3.29439757,211.18,211.13,5.98486099]
[1756901495855,3.29439757,211.17,211.13,5.98486099]
[1756901496056,1.72346099,211.21,211.14,7.57]
[1756901496255,3.29326144,211.2,211.14,7.57]
[1756901496455,3.29326144,211.19,211.13,5.98486099]
[1756901496656,3.29326144,211.18,211.13,5.98486099]
[1756901496855,3.29326144,211.17,211.13,5.98486099]
[1756901497056,1.72346099,211.19,211.13,4.2614]
[1756901497254,3.29272641,211.18,211.13,4.2614]
[1756901497456,3.29272641,211.17,211.15,7.57]
[1756901497752,95.65542535,211.39,211.15,9.29346099]
[1756901498056,95.65542535,211.39,211.18,7.57]
[1756901498057,1.72346099,211.25,211.18,7.57]
[1756901498251,3.29239714,211.24,211.18,7.57]
[1756901498552,3.29239714,211.23,211.17,1.72346099]
[1756901498751,3.29239714,211.22,211.18,7.57]
[1756901498950,3.29239714,211.21,211.18,7.57]
[1756901499150,3.29239714,211.2,211.17,1.72346099]
[1756901499353,1.72346099,211.23,211.18,7.57]
[1756901499554,3.29048611,211.22,211.16,4.261]
[1756901499755,3.29048611,211.21,211.17,7.57]
[1756901499957,3.29048611,211.2,211.17,7.57]
[1756901500156,1.72346099,211.23,211.17,7.57]
[1756901500358,1.72346099,211.23,211.14,118.3]
[1756901500359,1.72346099,211.21,211.14,4.2612]
[1756901500550,3.28978967,211.2,211.14,4.2612]
[1756901502060,3.28978967,211.2,211.13,7.57]
[1756901502357,1.72346099,211.21,211.13,7.57]
[1756901502558,1.72346099,211.19,211.13,7.57]
[1756901503254,1.72346099,211.2,211.13,7.57]
[1756901503455,3.28851428,211.19,211.13,7.57]
[1756901503651,1.72346099,211.2,211.13,7.57]
[1756901503855,1.72346099,211.18,211.13,7.57]
[1756901504055,1.72346099,211.18,211.14,7.19]
[1756901504357,9.07346099,211.18,211.14,7.19]
[1756901505150,9.07346099,211.18,211.12,7.19]
[1756901505562,7.35,211.18,211.12,7.19]
[1756901508862,7.35,211.18,211.12,11.4517]
[1756901509974,7.35,211.18,211.13,4.2615]
[1756901510370,7.35,211.18,211.14,7.19]
[1756901510573,7.35,211.18,211.12,7.19]
[1756901511368,7.35,211.18,211.15,11.4511]
[1756901511770,7.35,211.23,211.12,7.19]
[1756901511974,10.04149012,211.21,211.14,4.2613]
[1756901512170,3.2878664,211.2,211.14,4.2613]
[1756901512776,7.35,211.19,211.15,11.4511]
[1756901513069,3.2878664,211.18,211.15,7.19]
[1756901513274,7.35,211.19,211.15,7.19]
[1756901513575,3.28755799,211.18,211.15,7.19]
[1756901513774,7.35,211.2,211.12,7.19]
[1756901513976,3.28755954,211.19,211.12,7.19]
[1756901514175,3.28755954,211.18,211.12,7.19]
[1756901514371,7.35,211.2,211.12,7.19]
[1756901514575,3.28744547,211.19,211.14,4.2613]
[1756901514771,10.63744547,211.18,211.14,11.4513]
[1756901515075,7.35,211.18,211.14,11.4513]
[1756901515272,7.35,211.2,211.12,4.2618]
[1756901515572,7.35,211.18,211.11,7.19]
[1756901515771,3.28735194,211.17,211.11,7.19]
[1756901516573,3.28735194,211.17,211.11,11.4519]
[1756901517877,7.35,211.16,211.11,4.2619]
[1756901518079,7.35,211.18,211.11,4.2619]
[1756901518274,7.35,211.16,211.09,7.19]
[1756901518674,7.35,211.22,211.1,66.3015]
[1756901518875,10.63442281,211.21,211.17,7.19]
[1756901519074,3.28442281,211.2,211.17,7.19]
[1756901519281,3.28442281,211.19,211.1,7.19]
[1756901519479,7.35,211.21,211.1,7.19]
[1756901519680,3.2842564,211.2,211.1,7.19]
[1756901519880,3.2842564,211.19,211.14,4.2613]
[1756901520075,3.2842564,211.18,211.14,4.2613]
[1756901520576,3.2842564,211.18,211.15,7.19]
[1756901520873,10.04149012,211.22,211.15,7.19]
[1756901521079,3.28448954,211.21,211.15,7.19]
[1756901521281,7.35,211.19,211.15,7.19]
[1756901521479,3.28448954,211.18,211.14,4.2613]